[Event "Titled Tuesday Blitz April 25 Early 2023"]
[White "Vidruska, Renate"]
[Black "Prado, Alexandra"]
[WhiteFideId "11601841"]
[BlackFideId "3301346"]
[WhiteElo "1976"]
[BlackElo "1759"]
[Result "1-0"]
[Round "08"]
[TimeControl "180+2"]
[Date "2023.04.25"]
[WhiteClock "0:00:39"]
[BlackClock "0:00:01"]

1. e4 {[%clk 0:02:57]}  c5 {[%clk 0:02:58]} 2. Nc3 {[%clk 0:02:56]}  g6 {[%clk 0:02:54]} 3. f4 {[%clk 0:02:55]}  Nc6 {[%clk 0:02:39]} 4. Nf3 {[%clk 0:02:54]}  Bg7 {[%clk 0:02:29]} 5. g3 {[%clk 0:02:49]}  d6 {[%clk 0:02:17]} 6. Bg2 {[%clk 0:02:47]}  Bg4 {[%clk 0:01:43]} 7. O-O {[%clk 0:02:45]}  Nf6 {[%clk 0:01:34]} 8. d3 {[%clk 0:02:34]}  Qb6 {[%clk 0:01:26]} 9. Ne2 {[%clk 0:01:35]}  O-O {[%clk 0:01:00]} 10. h3 {[%clk 0:01:31]}  Bxf3 {[%clk 0:00:57]} 11. Bxf3 {[%clk 0:01:29]}  Nd4 {[%clk 0:00:49]} 12. Bg2 {[%clk 0:01:16]}  Nh5 {[%clk 0:00:32]} 13. Kh2 {[%clk 0:01:14]}  e6 {[%clk 0:00:21]} 14. g4 {[%clk 0:01:14]}  Nf6 {[%clk 0:00:21]} 15. c3 {[%clk 0:01:05]}  Nxe2 {[%clk 0:00:16]} 16. Qxe2 {[%clk 0:01:06]}  Nd7 {[%clk 0:00:15]} 17. f5 {[%clk 0:00:51]}  exf5 {[%clk 0:00:13]} 18. gxf5 {[%clk 0:00:51]}  Qc7 {[%clk 0:00:13]} 19. Bf4 {[%clk 0:00:51]}  gxf5 {[%clk 0:00:11]} 20. exf5 {[%clk 0:00:48]}  Rae8 {[%clk 0:00:11]} 21. Qg4 {[%clk 0:00:48]}  Nf6 {[%clk 0:00:11]} 22. Qh4 {[%clk 0:00:44]}  Qd7 {[%clk 0:00:11]} 23. Bg5 {[%clk 0:00:42]}  Re2 {[%clk 0:00:02]} 24. Bxf6 {[%clk 0:00:41]}  Qc6 {[%clk 0:00:01]} 25. Rg1 {[%clk 0:00:39]} 1-0


[Site "https://www.chess.com"]

[Event "Titled Tuesday Blitz April 25 Early 2023"]
[White "Faci, Fadil"]
[Black "Larina, Maria"]
[WhiteFideId "4645162"]
[BlackFideId "24113182"]
[WhiteElo "2152"]
[BlackElo "1848"]
[Result "1-0"]
[Round "08"]
[TimeControl "180+2"]
[Date "2023.04.25"]
[WhiteClock "0:00:37"]
[BlackClock "0:00:04"]

1. e4 {[%clk 0:02:59]}  c6 {[%clk 0:02:58]} 2. d4 {[%clk 0:02:58]}  d5 {[%clk 0:02:58]} 3. Nc3 {[%clk 0:02:58]}  dxe4 {[%clk 0:02:58]} 4. Nxe4 {[%clk 0:02:59]}  Nf6 {[%clk 0:02:58]} 5. Nxf6+ {[%clk 0:02:59]}  exf6 {[%clk 0:02:59]} 6. Nf3 {[%clk 0:02:57]}  Bd6 {[%clk 0:02:59]} 7. Bd3 {[%clk 0:02:55]}  O-O {[%clk 0:02:58]} 8. O-O {[%clk 0:02:56]}  Bg4 {[%clk 0:02:58]} 9. h3 {[%clk 0:02:55]}  Bh5 {[%clk 0:02:58]} 10. c3 {[%clk 0:02:55]}  Re8 {[%clk 0:02:57]} 11. Be3 {[%clk 0:02:53]}  Nd7 {[%clk 0:02:55]} 12. Re1 {[%clk 0:02:51]}  Nf8 {[%clk 0:02:55]} 13. a3 {[%clk 0:02:49]}  Bc7 {[%clk 0:02:54]} 14. g4 {[%clk 0:02:38]}  Bg6 {[%clk 0:02:44]} 15. Kg2 {[%clk 0:02:35]}  Qd6 {[%clk 0:02:35]} 16. Qd2 {[%clk 0:02:30]}  c5 {[%clk 0:02:26]} 17. Bxg6 {[%clk 0:02:28]}  hxg6 {[%clk 0:01:59]} 18. dxc5 {[%clk 0:02:27]}  Qc6 {[%clk 0:01:58]} 19. b4 {[%clk 0:02:20]}  Rad8 {[%clk 0:01:57]} 20. Qc2 {[%clk 0:02:12]}  Ne6 {[%clk 0:01:49]} 21. Rad1 {[%clk 0:02:05]}  Bf4 {[%clk 0:01:48]} 22. Rxd8 {[%clk 0:02:02]}  Rxd8 {[%clk 0:01:49]} 23. a4 {[%clk 0:01:46]}  a6 {[%clk 0:01:47]} 24. c4 {[%clk 0:01:44]}  Bxe3 {[%clk 0:01:39]} 25. fxe3 {[%clk 0:01:43]}  Ng5 {[%clk 0:01:38]} 26. Rf1 {[%clk 0:01:42]}  Re8 {[%clk 0:01:11]} 27. Qd3 {[%clk 0:01:29]}  Qxa4 {[%clk 0:01:04]} 28. Nxg5 {[%clk 0:01:29]}  fxg5 {[%clk 0:01:02]} 29. Qd5 {[%clk 0:01:28]}  Re6 {[%clk 0:00:39]} 30. Qxb7 {[%clk 0:01:12]}  Rf6 {[%clk 0:00:18]} 31. Rxf6 {[%clk 0:01:09]}  gxf6 {[%clk 0:00:19]} 32. Qb8+ {[%clk 0:00:43]}  Kg7 {[%clk 0:00:18]} 33. Qd6 {[%clk 0:00:41]}  Qc2+ {[%clk 0:00:17]} 34. Kf3 {[%clk 0:00:42]}  Qxc4 {[%clk 0:00:16]} 35. Qd4 {[%clk 0:00:41]}  Qf1+ {[%clk 0:00:15]} 36. Ke4 {[%clk 0:00:40]}  Qg2+ {[%clk 0:00:13]} 37. Kd3 {[%clk 0:00:40]}  Qf1+ {[%clk 0:00:09]} 38. Kc3 {[%clk 0:00:41]}  Qa1+ {[%clk 0:00:07]} 39. Kc4 {[%clk 0:00:41]}  Qa2+ {[%clk 0:00:07]} 40. Kd3 {[%clk 0:00:41]}  Qb1+ {[%clk 0:00:07]} 41. Ke2 {[%clk 0:00:38]}  Qa2+ {[%clk 0:00:04]} 42. Kf3 {[%clk 0:00:37]} 1-0


[Site "https://www.chess.com"]

[Event "Titled Tuesday Blitz April 25 Early 2023"]
[White "Caruana, Fabiano"]
[Black "Chigaev, Maksim"]
[WhiteFideId "2020009"]
[BlackFideId "4108116"]
[WhiteElo "2837"]
[BlackElo "2547"]
[Result "1-0"]
[Round "09"]
[TimeControl "180+2"]
[Date "2023.04.25"]
[WhiteClock "0:00:15"]
[BlackClock "0:00:04"]

1. d4 {[%clk 0:03:00]}  Nf6 {[%clk 0:02:58]} 2. c4 {[%clk 0:03:01]}  g6 {[%clk 0:02:58]} 3. Nc3 {[%clk 0:03:01]}  Bg7 {[%clk 0:02:58]} 4. e4 {[%clk 0:03:01]}  d6 {[%clk 0:02:59]} 5. Nge2 {[%clk 0:03:02]}  O-O {[%clk 0:02:58]} 6. h3 {[%clk 0:03:03]}  a5 {[%clk 0:02:46]} 7. Ng3 {[%clk 0:03:00]}  h5 {[%clk 0:02:40]} 8. Be2 {[%clk 0:02:50]}  Nc6 {[%clk 0:02:31]} 9. d5 {[%clk 0:02:43]}  h4 {[%clk 0:02:24]} 10. Nf1 {[%clk 0:02:42]}  Ne5 {[%clk 0:02:22]} 11. Bg5 {[%clk 0:02:40]}  c6 {[%clk 0:02:22]} 12. Ne3 {[%clk 0:02:35]}  a4 {[%clk 0:02:16]} 13. a3 {[%clk 0:02:30]}  cxd5 {[%clk 0:01:48]} 14. cxd5 {[%clk 0:02:30]}  b5 {[%clk 0:01:49]} 15. O-O {[%clk 0:02:27]}  Ba6 {[%clk 0:01:46]} 16. Bxh4 {[%clk 0:02:26]}  Qb6 {[%clk 0:01:45]} 17. Nc2 {[%clk 0:01:58]}  Rfc8 {[%clk 0:01:44]} 18. Nb4 {[%clk 0:01:43]}  Bb7 {[%clk 0:01:32]} 19. Rc1 {[%clk 0:01:36]}  Bh6 {[%clk 0:00:56]} 20. Rc2 {[%clk 0:01:32]}  Nc4 {[%clk 0:00:38]} 21. Bxc4 {[%clk 0:01:28]}  bxc4 {[%clk 0:00:34]} 22. Kh1 {[%clk 0:01:17]}  Bf4 {[%clk 0:00:31]} 23. Ne2 {[%clk 0:00:52]}  Bh6 {[%clk 0:00:31]} 24. Nc3 {[%clk 0:00:48]}  Bf4 {[%clk 0:00:30]} 25. Qf3 {[%clk 0:00:44]}  Be5 {[%clk 0:00:24]} 26. Bg3 {[%clk 0:00:45]}  Nd7 {[%clk 0:00:17]} 27. Qg4 {[%clk 0:00:37]}  Nf6 {[%clk 0:00:12]} 28. Qh4 {[%clk 0:00:35]}  Kg7 {[%clk 0:00:12]} 29. Bxe5 {[%clk 0:00:35]}  dxe5 {[%clk 0:00:13]} 30. Qg3 {[%clk 0:00:33]}  Qd6 {[%clk 0:00:10]} 31. Qe3 {[%clk 0:00:28]}  Nh5 {[%clk 0:00:10]} 32. Ne2 {[%clk 0:00:26]}  e6 {[%clk 0:00:10]} 33. Rd2 {[%clk 0:00:25]}  exd5 {[%clk 0:00:07]} 34. Nxd5 {[%clk 0:00:26]}  Qc5 {[%clk 0:00:08]} 35. Qxc5 {[%clk 0:00:20]}  Rxc5 {[%clk 0:00:08]} 36. Nec3 {[%clk 0:00:20]}  Bc6 {[%clk 0:00:07]} 37. Kh2 {[%clk 0:00:20]}  Rb8 {[%clk 0:00:07]} 38. Nb4 {[%clk 0:00:20]}  Be8 {[%clk 0:00:07]} 39. g3 {[%clk 0:00:20]}  Nf6 {[%clk 0:00:06]} 40. Rfd1 {[%clk 0:00:21]}  Rb7 {[%clk 0:00:05]} 41. Kg2 {[%clk 0:00:21]}  Bd7 {[%clk 0:00:04]} 42. f3 {[%clk 0:00:21]}  Be6 {[%clk 0:00:04]} 43. g4 {[%clk 0:00:21]}  Rc8 {[%clk 0:00:04]} 44. Kg3 {[%clk 0:00:21]}  g5 {[%clk 0:00:04]} 45. Nxa4 {[%clk 0:00:21]}  Nh7 {[%clk 0:00:04]} 46. Nc3 {[%clk 0:00:21]}  Nf8 {[%clk 0:00:04]} 47. Rd8 {[%clk 0:00:21]}  Rbb8 {[%clk 0:00:05]} 48. Rxc8 {[%clk 0:00:20]}  Rxc8 {[%clk 0:00:06]} 49. Rd2 {[%clk 0:00:19]}  Ng6 {[%clk 0:00:06]} 50. Nbd5 {[%clk 0:00:19]}  Nf4 {[%clk 0:00:06]} 51. Nxf4 {[%clk 0:00:19]}  exf4+ {[%clk 0:00:07]} 52. Kg2 {[%clk 0:00:20]}  Kf6 {[%clk 0:00:08]} 53. Rd1 {[%clk 0:00:17]}  Ke5 {[%clk 0:00:08]} 54. a4 {[%clk 0:00:17]}  Rb8 {[%clk 0:00:09]} 55. Rd2 {[%clk 0:00:18]}  Rb7 {[%clk 0:00:08]} 56. Kf2 {[%clk 0:00:18]}  Rb8 {[%clk 0:00:07]} 57. Ke1 {[%clk 0:00:18]}  Rb7 {[%clk 0:00:07]} 58. Kd1 {[%clk 0:00:19]}  f6 {[%clk 0:00:08]} 59. Kc2 {[%clk 0:00:18]}  Rh7 {[%clk 0:00:08]} 60. Rh2 {[%clk 0:00:18]}  Kd4 {[%clk 0:00:07]} 61. Kd2 {[%clk 0:00:18]}  Rb7 {[%clk 0:00:07]} 62. Nb5+ {[%clk 0:00:18]}  Kc5 {[%clk 0:00:08]} 63. Kc2 {[%clk 0:00:18]}  Rd7 {[%clk 0:00:08]} 64. Nc3 {[%clk 0:00:16]}  Rd3 {[%clk 0:00:06]} 65. Rf2 {[%clk 0:00:16]}  Rd7 {[%clk 0:00:07]} 66. Rf1 {[%clk 0:00:15]}  Rh7 {[%clk 0:00:07]} 67. Rh1 {[%clk 0:00:16]}  Rd7 {[%clk 0:00:08]} 68. a5 {[%clk 0:00:16]}  Rh7 {[%clk 0:00:06]} 69. a6 {[%clk 0:00:15]}  Kb6 {[%clk 0:00:04]} 70. Ra1 {[%clk 0:00:16]}  Bc8 {[%clk 0:00:02]} 71. a7 {[%clk 0:00:14]}  Bb7 {[%clk 0:00:02]} 72. a8=Q {[%clk 0:00:13]}  Bxa8 {[%clk 0:00:03]} 73. Rxa8 {[%clk 0:00:14]}  Rxh3 {[%clk 0:00:03]} 74. Nd5+ {[%clk 0:00:14]}  Kc5 {[%clk 0:00:04]} 75. Ra3 {[%clk 0:00:14]}  Kd4 {[%clk 0:00:04]} 76. Nxf6 {[%clk 0:00:14]}  Rh2+ {[%clk 0:00:04]} 77. Kb1 {[%clk 0:00:15]} 1-0


[Site "https://www.chess.com"]

[Event "Titled Tuesday Blitz April 25 Early 2023"]
[White "Firouzja, Alireza"]
[Black "Tactrics"]
[WhiteFideId "12573981"]
[WhiteElo "2904"]
[BlackElo "2962"]
[Result "1-0"]
[Round "09"]
[TimeControl "180+2"]
[Date "2023.04.25"]
[WhiteClock "0:00:07"]
[BlackClock "0:00:01"]

1. d4 {[%clk 0:02:59]}  e6 {[%clk 0:02:59]} 2. e4 {[%clk 0:02:57]}  d5 {[%clk 0:02:59]} 3. e5 {[%clk 0:02:58]}  c5 {[%clk 0:02:59]} 4. c3 {[%clk 0:02:59]}  Nc6 {[%clk 0:03:00]} 5. Nf3 {[%clk 0:02:59]}  Qb6 {[%clk 0:03:01]} 6. a3 {[%clk 0:02:59]}  c4 {[%clk 0:03:01]} 7. Be2 {[%clk 0:02:59]}  Na5 {[%clk 0:03:02]} 8. Nbd2 {[%clk 0:02:59]}  Bd7 {[%clk 0:03:02]} 9. Rb1 {[%clk 0:02:59]}  Qc7 {[%clk 0:03:03]} 10. O-O {[%clk 0:02:59]}  Ne7 {[%clk 0:03:02]} 11. Ng5 {[%clk 0:02:57]}  Nc8 {[%clk 0:03:01]} 12. f4 {[%clk 0:02:45]}  Nb6 {[%clk 0:02:56]} 13. Qe1 {[%clk 0:02:42]}  g6 {[%clk 0:02:53]} 14. g4 {[%clk 0:02:38]}  Ba4 {[%clk 0:02:50]} 15. Bd1 {[%clk 0:02:35]}  Be7 {[%clk 0:02:42]} 16. Ndf3 {[%clk 0:02:32]}  h6 {[%clk 0:02:35]} 17. Nh3 {[%clk 0:02:25]}  h5 {[%clk 0:02:36]} 18. Nf2 {[%clk 0:02:19]}  hxg4 {[%clk 0:02:30]} 19. Nxg4 {[%clk 0:02:20]}  O-O-O {[%clk 0:02:28]} 20. Be3 {[%clk 0:02:15]}  Bxd1 {[%clk 0:02:25]} 21. Rxd1 {[%clk 0:02:15]}  Rdf8 {[%clk 0:02:14]} 22. Rd2 {[%clk 0:02:15]}  Nc6 {[%clk 0:02:08]} 23. Rg2 {[%clk 0:02:14]}  Bd8 {[%clk 0:02:05]} 24. Bf2 {[%clk 0:02:05]}  Ne7 {[%clk 0:02:02]} 25. Bh4 {[%clk 0:02:05]}  Nf5 {[%clk 0:01:59]} 26. Bf6 {[%clk 0:02:05]}  Rh5 {[%clk 0:01:55]} 27. Ng5 {[%clk 0:02:05]}  Nd7 {[%clk 0:01:53]} 28. h3 {[%clk 0:01:55]}  Kb8 {[%clk 0:01:53]} 29. a4 {[%clk 0:01:54]}  a6 {[%clk 0:01:53]} 30. Qa1 {[%clk 0:01:53]}  Bxf6 {[%clk 0:01:40]} 31. exf6 {[%clk 0:01:53]}  Qd6 {[%clk 0:01:19]} 32. a5 {[%clk 0:01:44]}  Nh6 {[%clk 0:01:17]} 33. Qe1 {[%clk 0:01:16]}  Nxg4 {[%clk 0:01:15]} 34. hxg4 {[%clk 0:01:17]}  Rh6 {[%clk 0:01:12]} 35. Qe3 {[%clk 0:00:41]}  Rhh8 {[%clk 0:00:48]} 36. f5 {[%clk 0:00:29]}  exf5 {[%clk 0:00:40]} 37. gxf5 {[%clk 0:00:30]}  Nxf6 {[%clk 0:00:32]} 38. Qe5 {[%clk 0:00:29]}  Ne8 {[%clk 0:00:24]} 39. Nxf7 {[%clk 0:00:15]}  Qxe5 {[%clk 0:00:18]} 40. Nxe5 {[%clk 0:00:16]}  Rxf5 {[%clk 0:00:15]} 41. Rxg6 {[%clk 0:00:17]}  Rxf1+ {[%clk 0:00:11]} 42. Kxf1 {[%clk 0:00:18]}  Kc7 {[%clk 0:00:10]} 43. Re6 {[%clk 0:00:16]}  Nd6 {[%clk 0:00:09]} 44. Re7+ {[%clk 0:00:17]}  Kc8 {[%clk 0:00:10]} 45. Rg7 {[%clk 0:00:09]}  Rh2 {[%clk 0:00:07]} 46. Nd7 {[%clk 0:00:08]}  Ne4 {[%clk 0:00:03]} 47. Nb6+ {[%clk 0:00:08]}  Kb8 {[%clk 0:00:04]} 48. Nxd5 {[%clk 0:00:06]}  Rxb2 {[%clk 0:00:04]} 49. Rg8+ {[%clk 0:00:04]}  Ka7 {[%clk 0:00:03]} 50. Re8 {[%clk 0:00:04]}  Rb1+ {[%clk 0:00:01]} 51. Ke2 {[%clk 0:00:03]}  Nd6 {[%clk 0:00:02]} 52. Rd8 {[%clk 0:00:03]}  Nb5 {[%clk 0:00:02]} 53. Kd2 {[%clk 0:00:03]}  Rb2+ {[%clk 0:00:03]} 54. Kc1 {[%clk 0:00:03]}  Rb3 {[%clk 0:00:03]} 55. Nb6 {[%clk 0:00:03]}  Nc7 {[%clk 0:00:02]} 56. Rc8 {[%clk 0:00:03]}  Rxb6 {[%clk 0:00:02]} 57. axb6+ {[%clk 0:00:03]}  Kxb6 {[%clk 0:00:03]} 58. Kb2 {[%clk 0:00:03]}  Kc6 {[%clk 0:00:03]} 59. Rh8 {[%clk 0:00:03]}  b5 {[%clk 0:00:03]} 60. Rh6+ {[%clk 0:00:04]}  Kb7 {[%clk 0:00:04]} 61. Rd6 {[%clk 0:00:04]}  a5 {[%clk 0:00:04]} 62. Kc2 {[%clk 0:00:01]}  Ne8 {[%clk 0:00:03]} 63. Re6 {[%clk 0:00:02]}  Nc7 {[%clk 0:00:04]} 64. Rh6 {[%clk 0:00:02]}  Nd5 {[%clk 0:00:04]} 65. Rh5 {[%clk 0:00:02]}  Kc6 {[%clk 0:00:04]} 66. Rh6+ {[%clk 0:00:03]}  Kc7 {[%clk 0:00:04]} 67. Ra6 {[%clk 0:00:02]}  a4 {[%clk 0:00:03]} 68. Kb2 {[%clk 0:00:03]}  Kb7 {[%clk 0:00:03]} 69. Rh6 {[%clk 0:00:03]}  Kc7 {[%clk 0:00:03]} 70. Rh5 {[%clk 0:00:03]}  Kc6 {[%clk 0:00:03]} 71. Rh6+ {[%clk 0:00:04]}  Kc7 {[%clk 0:00:04]} 72. Rh3 {[%clk 0:00:04]}  Kc6 {[%clk 0:00:04]} 73. Ka3 {[%clk 0:00:05]}  Kc7 {[%clk 0:00:04]} 74. Rg3 {[%clk 0:00:05]}  Kc6 {[%clk 0:00:04]} 75. Kb2 {[%clk 0:00:06]}  Kc7 {[%clk 0:00:05]} 76. Rg6 {[%clk 0:00:06]}  Kb7 {[%clk 0:00:04]} 77. Rd6 {[%clk 0:00:07]}  Nb6 {[%clk 0:00:04]} 78. d5 {[%clk 0:00:05]}  Kc7 {[%clk 0:00:03]} 79. Rc6+ {[%clk 0:00:05]}  Kb7 {[%clk 0:00:02]} 80. Rc5 {[%clk 0:00:06]}  Ka6 {[%clk 0:00:02]} 81. d6 {[%clk 0:00:06]}  Nd7 {[%clk 0:00:01]} 82. Rc7 {[%clk 0:00:06]}  Ne5 {[%clk 0:00:01]} 83. d7 {[%clk 0:00:07]} 1-0


[Site "https://www.chess.com"]

[Event "Titled Tuesday Blitz April 25 Early 2023"]
[White "Svane, Frederik"]
[Black "Bluebaum, Matthias"]
[WhiteFideId "12923044"]
[BlackFideId "24651516"]
[WhiteElo "2502"]
[BlackElo "2638"]
[Result "1-0"]
[Round "09"]
[TimeControl "180+2"]
[Date "2023.04.25"]
[WhiteClock "0:00:53"]
[BlackClock "0:00:09"]

1. c3 {[%clk 0:02:56]}  d5 {[%clk 0:02:59]} 2. Nf3 {[%clk 0:02:56]}  Nf6 {[%clk 0:02:59]} 3. d4 {[%clk 0:02:56]}  c5 {[%clk 0:02:54]} 4. g3 {[%clk 0:02:56]}  cxd4 {[%clk 0:02:52]} 5. cxd4 {[%clk 0:02:56]}  Nc6 {[%clk 0:02:53]} 6. Bg2 {[%clk 0:02:57]}  Bf5 {[%clk 0:02:53]} 7. O-O {[%clk 0:02:56]}  e6 {[%clk 0:02:54]} 8. Nc3 {[%clk 0:02:56]}  h6 {[%clk 0:02:54]} 9. Ne5 {[%clk 0:02:50]}  Qb6 {[%clk 0:02:29]} 10. Nxc6 {[%clk 0:02:47]}  Qxc6 {[%clk 0:02:30]} 11. Bf4 {[%clk 0:02:43]}  Be7 {[%clk 0:02:26]} 12. Rc1 {[%clk 0:02:44]}  Qd7 {[%clk 0:02:15]} 13. Qa4 {[%clk 0:02:36]}  a6 {[%clk 0:02:01]} 14. Qxd7+ {[%clk 0:02:32]}  Nxd7 {[%clk 0:02:00]} 15. e4 {[%clk 0:02:31]}  dxe4 {[%clk 0:02:01]} 16. Nxe4 {[%clk 0:02:31]}  g5 {[%clk 0:01:39]} 17. Nd6+ {[%clk 0:02:26]}  Kf8 {[%clk 0:01:40]} 18. Be5 {[%clk 0:02:12]}  f6 {[%clk 0:01:15]} 19. Nxf5 {[%clk 0:02:12]}  fxe5 {[%clk 0:01:13]} 20. Nxe7 {[%clk 0:02:08]}  Kxe7 {[%clk 0:01:14]} 21. dxe5 {[%clk 0:02:09]}  Nxe5 {[%clk 0:01:09]} 22. Rc7+ {[%clk 0:02:08]}  Kf6 {[%clk 0:01:09]} 23. f4 {[%clk 0:02:07]}  Nd3 {[%clk 0:00:43]} 24. fxg5+ {[%clk 0:02:06]}  Ke5 {[%clk 0:00:43]} 25. g6 {[%clk 0:02:03]}  Rhg8 {[%clk 0:00:43]} 26. g7 {[%clk 0:02:04]}  Kd6 {[%clk 0:00:40]} 27. Rxb7 {[%clk 0:02:03]}  Nc5 {[%clk 0:00:35]} 28. Rbf7 {[%clk 0:02:01]}  Rab8 {[%clk 0:00:33]} 29. b3 {[%clk 0:01:36]}  a5 {[%clk 0:00:31]} 30. Rf8 {[%clk 0:01:12]}  Nd7 {[%clk 0:00:31]} 31. Rxb8 {[%clk 0:01:13]}  Rxb8 {[%clk 0:00:31]} 32. Be4 {[%clk 0:01:14]}  Rg8 {[%clk 0:00:10]} 33. Rf7 {[%clk 0:01:13]}  Ne5 {[%clk 0:00:11]} 34. Bh7 {[%clk 0:01:09]}  Rb8 {[%clk 0:00:02]} 35. g8=Q {[%clk 0:01:08]}  Rxg8 {[%clk 0:00:02]} 36. Bxg8 {[%clk 0:01:09]}  Nd3 {[%clk 0:00:02]} 37. Rh7 {[%clk 0:01:06]}  Nc1 {[%clk 0:00:03]} 38. Rxh6 {[%clk 0:01:05]}  Nxa2 {[%clk 0:00:04]} 39. Rxe6+ {[%clk 0:01:06]}  Kc5 {[%clk 0:00:05]} 40. h4 {[%clk 0:01:05]}  Kb4 {[%clk 0:00:05]} 41. h5 {[%clk 0:01:04]}  Nc1 {[%clk 0:00:06]} 42. h6 {[%clk 0:01:03]}  Nd3 {[%clk 0:00:06]} 43. h7 {[%clk 0:01:03]}  Nc5 {[%clk 0:00:07]} 44. Rb6+ {[%clk 0:01:02]}  Ka3 {[%clk 0:00:07]} 45. h8=Q {[%clk 0:01:03]}  Ka2 {[%clk 0:00:07]} 46. b4+ {[%clk 0:01:02]}  Nb3 {[%clk 0:00:07]} 47. bxa5 {[%clk 0:00:56]}  Kb1 {[%clk 0:00:07]} 48. Rxb3+ {[%clk 0:00:56]}  Kc1 {[%clk 0:00:07]} 49. Qc3+ {[%clk 0:00:54]}  Kd1 {[%clk 0:00:08]} 50. Bd5 {[%clk 0:00:52]}  Ke2 {[%clk 0:00:09]} 51. Bf3# {[%clk 0:00:53]} 1-0


[Site "https://www.chess.com"]

[Event "Titled Tuesday Blitz April 25 Early 2023"]
[White "Steinberg, Nitzan"]
[Black "Moussard, Jules"]
[WhiteFideId "2801795"]
[BlackFideId "642908"]
[WhiteElo "2486"]
[BlackElo "2610"]
[Result "0-1"]
[Round "09"]
[TimeControl "180+2"]
[Date "2023.04.25"]
[WhiteClock "0:00:46"]
[BlackClock "0:01:26"]

1. e4 {[%clk 0:03:00]}  c5 {[%clk 0:02:58]} 2. Nf3 {[%clk 0:03:01]}  d6 {[%clk 0:02:58]} 3. d4 {[%clk 0:03:02]}  cxd4 {[%clk 0:02:59]} 4. Nxd4 {[%clk 0:03:02]}  Nf6 {[%clk 0:03:00]} 5. Nc3 {[%clk 0:03:03]}  a6 {[%clk 0:03:00]} 6. h4 {[%clk 0:03:03]}  e5 {[%clk 0:03:00]} 7. Nb3 {[%clk 0:03:04]}  Be6 {[%clk 0:03:00]} 8. f4 {[%clk 0:03:04]}  exf4 {[%clk 0:02:59]} 9. Bxf4 {[%clk 0:03:05]}  Nc6 {[%clk 0:02:56]} 10. Qd3 {[%clk 0:03:00]}  Ne5 {[%clk 0:02:55]} 11. Qd2 {[%clk 0:02:57]}  Be7 {[%clk 0:02:53]} 12. O-O-O {[%clk 0:02:56]}  Rc8 {[%clk 0:02:51]} 13. Kb1 {[%clk 0:02:52]}  O-O {[%clk 0:02:50]} 14. Nd4 {[%clk 0:02:51]}  b5 {[%clk 0:02:43]} 15. Nf5 {[%clk 0:02:43]}  b4 {[%clk 0:02:26]} 16. Bxe5 {[%clk 0:02:03]}  bxc3 {[%clk 0:01:42]} 17. Qg5 {[%clk 0:02:02]}  Bxf5 {[%clk 0:01:38]} 18. exf5 {[%clk 0:01:47]}  Qb6 {[%clk 0:01:36]} 19. Bxc3 {[%clk 0:01:39]}  Rxc3 {[%clk 0:01:37]} 20. Bd3 {[%clk 0:01:33]}  Nd5 {[%clk 0:01:32]} 21. f6 {[%clk 0:01:05]}  Bxf6 {[%clk 0:01:31]} 22. Qc1 {[%clk 0:00:46]}  Rb8 {[%clk 0:01:26]} 0-1


[Site "https://www.chess.com"]

[Event "Titled Tuesday Blitz April 25 Early 2023"]
[White "MaryanKyrychenko"]
[Black "Duda, Jan-Krzysztof"]
[BlackFideId "1170546"]
[WhiteElo "2587"]
[BlackElo "2790"]
[Result "0-1"]
[Round "09"]
[TimeControl "180+2"]
[Date "2023.04.25"]
[WhiteClock "0:00:05"]
[BlackClock "0:00:35"]

1. e4 {[%clk 0:02:50]}  c6 {[%clk 0:03:00]} 2. d4 {[%clk 0:02:46]}  d5 {[%clk 0:03:00]} 3. e5 {[%clk 0:02:45]}  Bf5 {[%clk 0:03:00]} 4. Nf3 {[%clk 0:02:46]}  e6 {[%clk 0:02:59]} 5. Be2 {[%clk 0:02:46]}  Ne7 {[%clk 0:02:57]} 6. O-O {[%clk 0:02:46]}  h6 {[%clk 0:02:55]} 7. Nbd2 {[%clk 0:02:45]}  a5 {[%clk 0:02:55]} 8. a4 {[%clk 0:02:44]}  Nd7 {[%clk 0:02:47]} 9. Nb3 {[%clk 0:02:44]}  g5 {[%clk 0:02:45]} 10. Bd3 {[%clk 0:02:33]}  Bg7 {[%clk 0:02:27]} 11. Bxf5 {[%clk 0:02:27]}  Nxf5 {[%clk 0:02:28]} 12. g4 {[%clk 0:02:27]}  Ne7 {[%clk 0:02:27]} 13. Qd3 {[%clk 0:02:19]}  Qc7 {[%clk 0:02:22]} 14. Bd2 {[%clk 0:02:07]}  Ng6 {[%clk 0:01:59]} 15. Rac1 {[%clk 0:01:32]}  Bf8 {[%clk 0:01:57]} 16. h4 {[%clk 0:01:22]}  gxh4 {[%clk 0:01:46]} 17. Nh2 {[%clk 0:01:19]}  h5 {[%clk 0:01:40]} 18. g5 {[%clk 0:01:15]}  c5 {[%clk 0:01:12]} 19. c4 {[%clk 0:01:03]}  dxc4 {[%clk 0:01:12]} 20. Rxc4 {[%clk 0:00:57]}  Qc6 {[%clk 0:01:12]} 21. Nxa5 {[%clk 0:00:45]}  Qd5 {[%clk 0:01:11]} 22. Qf3 {[%clk 0:00:37]}  b6 {[%clk 0:00:37]} 23. Nb3 {[%clk 0:00:10]}  Be7 {[%clk 0:00:37]} 24. Rfc1 {[%clk 0:00:05]}  O-O {[%clk 0:00:35]} 0-1


[Site "https://www.chess.com"]

[Event "Titled Tuesday Blitz April 25 Early 2023"]
[White "WindWhistler11"]
[Black "Korobov, Anton"]
[BlackFideId "14105730"]
[WhiteElo "2539"]
[BlackElo "2638"]
[Result "0-1"]
[Round "09"]
[TimeControl "180+2"]
[Date "2023.04.25"]
[WhiteClock "0:00:01"]
[BlackClock "0:01:12"]

1. Nf3 {[%clk 0:03:00]}  Nf6 {[%clk 0:02:59]} 2. g3 {[%clk 0:03:01]}  g6 {[%clk 0:02:59]} 3. Bg2 {[%clk 0:03:01]}  Bg7 {[%clk 0:03:00]} 4. O-O {[%clk 0:03:02]}  O-O {[%clk 0:03:00]} 5. b3 {[%clk 0:03:02]}  Ne4 {[%clk 0:02:52]} 6. c3 {[%clk 0:02:56]}  d5 {[%clk 0:02:52]} 7. Bb2 {[%clk 0:02:53]}  c5 {[%clk 0:02:52]} 8. d3 {[%clk 0:02:52]}  Nd6 {[%clk 0:02:52]} 9. Nfd2 {[%clk 0:02:49]}  e6 {[%clk 0:02:42]} 10. Qc2 {[%clk 0:02:37]}  Nc6 {[%clk 0:02:41]} 11. c4 {[%clk 0:02:27]}  Nd4 {[%clk 0:02:34]} 12. Bxd4 {[%clk 0:02:23]}  Bxd4 {[%clk 0:02:34]} 13. Nc3 {[%clk 0:02:22]}  Nf5 {[%clk 0:02:20]} 14. e3 {[%clk 0:02:16]}  Bg7 {[%clk 0:02:09]} 15. cxd5 {[%clk 0:02:10]}  exd5 {[%clk 0:02:09]} 16. Nxd5 {[%clk 0:01:42]}  Bxa1 {[%clk 0:02:10]} 17. Rxa1 {[%clk 0:01:42]}  Be6 {[%clk 0:01:59]} 18. Nf4 {[%clk 0:01:35]}  Qe7 {[%clk 0:01:59]} 19. Rc1 {[%clk 0:01:32]}  Rac8 {[%clk 0:01:58]} 20. Ne4 {[%clk 0:01:31]}  b6 {[%clk 0:01:55]} 21. Qc3 {[%clk 0:01:25]}  f6 {[%clk 0:01:52]} 22. h4 {[%clk 0:00:49]}  Nd6 {[%clk 0:01:45]} 23. h5 {[%clk 0:00:32]}  g5 {[%clk 0:01:42]} 24. Ne2 {[%clk 0:00:14]}  Nxe4 {[%clk 0:01:31]} 25. Bxe4 {[%clk 0:00:12]}  Bg4 {[%clk 0:01:31]} 26. f3 {[%clk 0:00:08]}  Bxh5 {[%clk 0:01:31]} 27. Qc4+ {[%clk 0:00:08]}  Bf7 {[%clk 0:01:30]} 28. Qc2 {[%clk 0:00:08]}  Be6 {[%clk 0:01:27]} 29. g4 {[%clk 0:00:07]}  f5 {[%clk 0:01:28]} 30. gxf5 {[%clk 0:00:06]}  Bxf5 {[%clk 0:01:29]} 31. Ng3 {[%clk 0:00:07]}  Bxe4 {[%clk 0:01:28]} 32. Nxe4 {[%clk 0:00:06]}  Rxf3 {[%clk 0:01:26]} 33. Qg2 {[%clk 0:00:07]}  Rxe3 {[%clk 0:01:18]} 34. Rf1 {[%clk 0:00:05]}  Rxe4 {[%clk 0:01:14]} 35. dxe4 {[%clk 0:00:04]}  Rf8 {[%clk 0:01:14]} 36. Re1 {[%clk 0:00:02]}  Qe5 {[%clk 0:01:13]} 37. Qg4 {[%clk 0:00:01]}  Qf4 {[%clk 0:01:12]} 38. Qe6+ {[%clk 0:00:01]}  Kh8 {[%clk 0:01:12]} 0-1


[Site "https://www.chess.com"]